bitfinex-derivatives/quotes_BTCF0:USTF0_20250904
["timestamp","ask_amount","ask_price","bid_price","bid_amount"]
[1756953410900,0.84589748,111710.0,111700.0,1.2588026]
[1756953411100,0.80589748,111710.0,111700.0,1.2588026]
[1756953411300,0.80589748,111710.0,111700.0,0.89027]
[1756953411602,0.80589748,111710.0,111700.0,1.2588026]
[1756953412207,0.81589748,111710.0,111700.0,1.2588026]
[1756953412506,0.48589748,111710.0,111700.0,1.2588026]
[1756953412899,0.81589748,111710.0,111700.0,1.2588026]
[1756953413600,0.81589748,111710.0,111700.0,0.4026426]
[1756953413807,0.48589748,111710.0,111700.0,0.89023]
[1756953414306,0.48589748,111710.0,111700.0,0.03411]
[1756953414506,0.46589748,111710.0,111700.0,0.89023]
[1756953414703,0.48589748,111710.0,111700.0,0.89023]
[1756953414911,0.46589748,111710.0,111700.0,0.89023]
[1756953415710,0.46589748,111710.0,111700.0,1.2587626]
[1756953417309,0.41780955,111710.0,111700.0,0.89023]
[1756953417611,0.41780955,111710.0,111700.0,1.2587626]
[1756953418311,0.48195552,111710.0,111700.0,1.2587626]
[1756953418509,0.48195552,111710.0,111700.0,0.89023]
[1756953418710,0.48195552,111710.0,111700.0,1.2587626]
[1756953419007,0.48195552,111710.0,111700.0,1.2587226]
[1756953419305,0.48195552,111710.0,111700.0,0.89019]
[1756953419610,0.80195552,111710.0,111700.0,0.89019]
[1756953419809,0.50195552,111710.0,111700.0,0.89019]
[1756953420610,0.79195552,111710.0,111700.0,0.03411]
[1756953420811,0.79195552,111710.0,111700.0,0.89015]
[1756953421013,0.50195552,111710.0,111700.0,0.89015]
[1756953421314,0.48195552,111710.0,111700.0,0.89015]
[1756953421499,0.48195552,111710.0,111700.0,0.03411]
[1756953421700,0.48195552,111710.0,111700.0,0.89015]
[1756953421910,0.48195552,111710.0,111700.0,0.03411]
[1756953422110,0.83195552,111710.0,111700.0,0.89015]
[1756953422510,0.50195552,111710.0,111700.0,0.89015]
[1756953423606,0.50195552,111710.0,111700.0,0.011]
[1756953423805,1.27392687,111710.0,111700.0,0.03492]
[1756953424010,1.4597809,111710.0,111700.0,0.857]
[1756953424211,1.52399862,111710.0,111700.0,0.857]
[1756953424513,1.59383745,111710.0,111700.0,0.857]
[1756953424710,1.52961973,111710.0,111700.0,0.857]
[1756953424911,1.4597809,111710.0,111700.0,0.857]
[1756953425213,1.52397525,111710.0,111700.0,0.857]
[1756953425510,1.4617809,111710.0,111700.0,0.856]
[1756953425712,1.4627809,111710.0,111700.0,0.856]
[1756953426114,0.03647,111700.0,111690.0,0.87992]
[1756953426311,0.84850048,111700.0,111690.0,0.87992]
[1756953426507,0.46848232,111700.0,111690.0,1.2599526]
[1756953426714,0.46607788,111700.0,111690.0,1.5099526]
[1756953427202,0.40189955,111700.0,111690.0,1.14142]
[1756953427398,0.37931955,111700.0,111690.0,1.5099526]
[1756953427599,0.42843624,111700.0,111690.0,1.5099526]
[1756953428210,0.42743624,111700.0,111690.0,1.5099526]
[1756953428414,0.42743624,111700.0,111690.0,1.5109526]
[1756953429212,0.42743624,111700.0,111690.0,1.14242]
[1756953429511,0.46636624,111700.0,111690.0,1.5004126]
[1756953429810,0.46636624,111700.0,111690.0,0.6444526]
[1756953430000,0.46636624,111700.0,111690.0,1.5004126]
[1756953430412,0.48242788,111700.0,111690.0,1.5004126]
[1756953430712,0.48242788,111700.0,111690.0,0.3944526]
[1756953430912,0.48242788,111700.0,111690.0,0.88188]
[1756953433914,1.18096048,111700.0,111690.0,0.02592]
[1756953434208,0.85096048,111700.0,111690.0,0.88184]
[1756953434408,1.20096048,111700.0,111690.0,0.88184]
[1756953434908,1.54680367,111700.0,111690.0,0.88184]
[1756953435215,1.54680367,111700.0,111690.0,0.02592]
[1756953435406,1.19680367,111700.0,111690.0,0.88288]
[1756953435607,1.21680367,111700.0,111690.0,0.88288]
[1756953435806,1.21680367,111700.0,111690.0,0.88188]
[1756953435807,1.19680367,111700.0,111690.0,0.88188]
[1756953436014,1.54680367,111700.0,111690.0,0.88188]
[1756953436215,1.54780367,111700.0,111690.0,0.88088]
[1756953436806,0.84927107,111700.0,111690.0,0.88088]
[1756953437011,1.21780367,111700.0,111690.0,0.88088]
[1756953437210,1.19780367,111700.0,111690.0,0.88088]
[1756953437715,0.46847788,111700.0,111690.0,1.2609126]
[1756953438813,0.46847788,111700.0,111690.0,1.2619126]
[1756953439019,0.48342788,111700.0,111690.0,1.2503726]
[1756953439212,0.48242788,111700.0,111690.0,0.88184]
[1756953439412,0.48242788,111700.0,111690.0,0.88284]
[1756953441512,0.48242788,111700.0,111690.0,0.88276]
[1756953441513,0.85096048,111700.0,111690.0,0.88276]
[1756953442316,0.46747788,111700.0,111690.0,0.88276]
[1756953442521,0.4274144,111700.0,111690.0,1.2627526]
[1756953442710,0.4274144,111700.0,111690.0,1.2617526]
[1756953442912,0.4278144,111700.0,111690.0,1.2607526]
[1756953443107,0.4288144,111700.0,111690.0,1.2607526]
[1756953443620,0.4278144,111700.0,111690.0,1.2607526]
[1756953443815,0.4278144,111700.0,111690.0,1.2617526]
[1756953444220,0.4278144,111700.0,111690.0,0.89322]
[1756953444521,0.4517944,111700.0,111690.0,1.2627526]
[1756953444720,0.4667444,111700.0,111690.0,0.3954926]
[1756953445028,0.835277,111700.0,111690.0,0.88308]
[1756953445522,0.835277,111700.0,111690.0,0.88108]
[1756953445729,0.835277,111700.0,111690.0,0.88308]
[1756953446021,0.855277,111700.0,111690.0,0.88308]
[1756953446222,0.855277,111700.0,111690.0,0.02636]
[1756953446424,0.856277,111700.0,111690.0,0.88208]
[1756953447323,0.856277,111700.0,111690.0,0.88108]
[1756953447917,0.836277,111700.0,111690.0,0.88108]
[1756953448222,1.54212019,111700.0,111690.0,0.0004]
[1756953448424,1.49402534,111700.0,111690.0,0.85608]
[1756953448723,0.01495,111690.0,111680.0,0.04613789]
[1756953448923,0.88638298,111690.0,111680.0,0.90177789]
[1756953449223,0.90490253,111690.0,111680.0,0.90253789]
[1756953450027,0.46636993,111690.0,111680.0,1.27207049]
[1756953450910,0.46636993,111690.0,111680.0,1.27307049]
[1756953451513,0.46636993,111690.0,111680.0,1.28457049]
[1756953453116,0.41824955,111690.0,111680.0,1.27307049]
[1756953453321,0.41824955,111690.0,111680.0,0.41747049]
[1756953453518,0.41824955,111690.0,111680.0,1.27299049]
[1756953455018,0.41824955,111690.0,111680.0,1.28449049]
[1756953455222,0.37931955,111690.0,111680.0,1.53449049]
[1756953455516,0.37931955,111690.0,111680.0,1.90302309]
[1756953455517,0.06667732,111690.0,111680.0,1.90302309]
[1756953455724,0.01851955,111690.0,111680.0,1.89529049]
[1756953455916,0.04825777,111700.0,111690.0,0.03646]
[1756953456112,0.04815777,111700.0,111690.0,0.4049926]
[1756953456316,0.02319436,111700.0,111690.0,0.4049926]
[1756953456521,0.04757436,111700.0,111690.0,0.4049926]
[1756953456822,0.02319436,111700.0,111690.0,1.7605904]
[1756953457216,0.02359436,111700.0,111690.0,1.7605904]
[1756953457419,0.02319436,111700.0,111690.0,0.28646]
[1756953457619,0.02359436,111700.0,111690.0,1.7605904]
[1756953457819,0.02459436,111700.0,111690.0,1.7605904]
[1756953458223,0.02459436,111700.0,111690.0,0.6549926]
[1756953458622,0.02459436,111700.0,111690.0,0.6559926]
[1756953458818,0.02459436,111700.0,111690.0,1.7615904]
[1756953459022,0.02419436,111700.0,111690.0,1.7715904]
[1756953459223,0.02319436,111700.0,111690.0,1.7715904]
[1756953459425,0.02359436,111700.0,111690.0,1.7725904]
[1756953459725,0.02359436,111700.0,111690.0,2.6279104]
[1756953459924,0.02359436,111700.0,111690.0,2.6268704]
[1756953460320,0.02359436,111700.0,111690.0,2.6278704]
[1756953461425,0.02359436,111700.0,111690.0,2.62767344]
[1756953462025,0.02359436,111700.0,111690.0,1.77239344]
[1756953462331,0.04836436,111700.0,111690.0,1.52214336]
[1756953462620,0.04836436,111700.0,111690.0,1.83214336]
[1756953462621,0.02359436,111700.0,111690.0,1.83214336]
[1756953462828,0.02359436,111700.0,111690.0,2.20062672]
[1756953463719,0.02359436,111700.0,111690.0,1.34542672]
[1756953463926,0.42411436,111700.0,111690.0,1.13208]
[1756953464128,0.42411436,111700.0,111690.0,1.50056336]
[1756953465630,1.44075549,111700.0,111690.0,0.02696]
[1756953465929,1.44075549,111700.0,111690.0,0.85708]
[1756953466132,1.42259772,111700.0,111690.0,0.85708]
[1756953466329,1.04259772,111700.0,111690.0,0.88039]
[1756953466525,1.42259772,111700.0,111690.0,0.02531]
[1756953466731,1.04259772,111700.0,111690.0,0.87975]
[1756953466925,1.42070864,111700.0,111690.0,0.02371]
[1756953467120,1.14906847,111700.0,111690.0,0.8554]
[1756953467327,1.21755183,111700.0,111690.0,0.8554]
[1756953467527,1.53755183,111700.0,111690.0,0.855]
[1756953467828,1.53755183,111700.0,111690.0,0.8554]
[1756953468830,1.18755183,111700.0,111690.0,0.85544]
[1756953469025,1.54755183,111700.0,111690.0,0.85544]
[1756953469934,1.56361924,111700.0,111690.0,0.85544]
[1756953470132,1.23361924,111700.0,111690.0,0.85544]
[1756953470328,1.56361924,111700.0,111690.0,0.85544]
[1756953470731,1.56361924,111700.0,111690.0,0.85532]
[1756953471231,0.83513588,111700.0,111690.0,0.85532]
[1756953471426,0.85513588,111700.0,111690.0,0.85532]
[1756953472735,1.52361924,111700.0,111690.0,0.87863]
[1756953475046,1.23361924,111700.0,111690.0,0.87863]
[1756953475633,1.59441924,111700.0,111690.0,0.87863]
[1756953475835,1.59441924,111700.0,111690.0,0.02371]
[1756953476040,1.53024091,111700.0,111690.0,0.87847]
[1756953476240,1.53024091,111700.0,111690.0,0.02371]
[1756953476835,1.53024091,111700.0,111690.0,0.87843]
[1756953478240,1.53024091,111700.0,111690.0,0.02371]
[1756953478446,1.53024091,111700.0,111690.0,0.87839]
[1756953479239,1.28024091,111700.0,111690.0,0.02371]
[1756953479441,1.28024091,111700.0,111690.0,0.87839]
[1756953479943,1.61024091,111700.0,111690.0,0.87835]
[1756953480441,1.67441924,111700.0,111690.0,0.87835]
[1756953480636,1.67441924,111700.0,111690.0,0.02371]
[1756953480842,1.61024091,111700.0,111690.0,0.87831]
[1756953481139,1.61024091,111700.0,111690.0,0.855]
[1756953483641,1.61024091,111700.0,111690.0,0.87831]
[1756953486248,1.67436009,111700.0,111690.0,0.87831]
[1756953487946,1.61024091,111700.0,111690.0,0.87831]
[1756953488333,1.61024091,111700.0,111690.0,0.02371]
[1756953488537,1.61024091,111700.0,111690.0,0.87799]
[1756953489348,1.32127156,111700.0,111690.0,0.87799]
[1756953489545,1.67437558,111700.0,111690.0,0.87799]
[1756953490446,1.61024091,111700.0,111690.0,0.87799]
[1756953491138,1.24175755,111700.0,111690.0,0.87799]
[1756953491345,1.61024091,111700.0,111690.0,0.87799]
[1756953492149,1.67437558,111700.0,111690.0,0.87799]
[1756953492557,1.65836698,111700.0,111690.0,0.87799]
[1756953493751,1.61024091,111700.0,111690.0,0.0004]
[1756953494055,1.61024091,111700.0,111690.0,0.85448]
[1756953494953,2.96569099,111700.0,111690.0,0.0004]
[1756953495151,0.03608,111690.0,111680.0,0.63098]
[1756953495355,0.03608,111690.0,111680.0,0.63178]
[1756953495356,2.33429084,111690.0,111680.0,0.63178]
[1756953495654,2.33669572,111690.0,111680.0,0.63098]
[1756953495856,2.33669572,111690.0,111680.0,0.63138]
[1756953496554,2.33669572,111690.0,111680.0,0.0005]
[1756953496756,2.33669572,111690.0,111680.0,0.02337]
[1756953496958,2.33669572,111690.0,111680.0,0.0005]
[1756953497150,2.33669572,111690.0,111680.0,0.02437]
[1756953497455,1.1509626,111690.0,111680.0,0.02537]
[1756953498255,1.1509626,111690.0,111680.0,0.02437]
[1756953498456,1.1529626,111690.0,111680.0,0.02437]
[1756953498755,1.1529626,111690.0,111680.0,0.02337]
[1756953498954,1.1539626,111690.0,111680.0,0.02337]
[1756953500158,1.21713925,111690.0,111680.0,0.02337]
[1756953500547,1.21613925,111690.0,111680.0,0.02337]
[1756953501349,1.21513925,111690.0,111680.0,0.02337]
[1756953501649,1.21713925,111690.0,111680.0,0.02337]
[1756953501851,1.21813925,111690.0,111680.0,0.02337]
[1756953504356,1.21713925,111690.0,111680.0,0.02337]
[1756953504546,1.21513925,111690.0,111680.0,0.02337]
[1756953504751,1.21613925,111690.0,111680.0,0.02337]
[1756953505659,1.21613925,111690.0,111680.0,0.87701]
[1756953506761,0.84765589,111690.0,111680.0,0.87701]
[1756953507158,1.21613925,111690.0,111680.0,0.87701]
[1756953507360,1.21513925,111690.0,111680.0,0.87701]
[1756953507664,1.21613925,111690.0,111680.0,0.87701]
[1756953508557,0.85613925,111690.0,111680.0,0.87701]
[1756953508862,0.86613925,111690.0,111680.0,0.87701]
[1756953509560,0.8019626,111690.0,111680.0,0.87701]
[1756953510256,0.7919626,111690.0,111680.0,0.87701]
[1756953510461,0.85613925,111690.0,111680.0,0.87701]
[1756953510663,0.89613925,111690.0,111680.0,0.87701]
[1756953510861,1.22613925,111690.0,111680.0,0.87701]
[1756953511253,0.89613925,111690.0,111680.0,0.87701]
[1756953511454,1.21613925,111690.0,111680.0,0.87701]
[1756953511754,0.89613925,111690.0,111680.0,0.87701]
[1756953511953,1.22613925,111690.0,111680.0,0.87701]
[1756953512565,0.8319626,111690.0,111680.0,0.87701]
[1756953512864,0.89613925,111690.0,111680.0,0.87701]
[1756953513163,1.17613925,111690.0,111680.0,0.87701]
[1756953513664,0.94613925,111690.0,111680.0,0.87701]
[1756953515363,0.58765589,111690.0,111680.0,0.87701]
[1756953515562,0.85613925,111690.0,111680.0,0.87701]
[1756953515764,1.21613925,111690.0,111680.0,0.87701]
[1756953517560,0.84765589,111690.0,111680.0,0.87701]
[1756953518459,0.98613925,111690.0,111680.0,0.87701]
[1756953520162,1.05613925,111690.0,111680.0,0.87701]
[1756953520464,0.9919626,111690.0,111680.0,0.87701]
[1756953520659,0.70376228,111690.0,111680.0,0.87701]
[1756953520865,1.07224564,111690.0,111680.0,0.87701]
[1756953521561,0.70376228,111690.0,111680.0,0.87701]
[1756953521768,1.07224564,111690.0,111680.0,0.87701]
[1756953521959,0.9919626,111690.0,111680.0,0.87701]
[1756953522663,0.7013574,111690.0,111680.0,1.49549336]
[1756953522857,0.62107436,111690.0,111680.0,1.49549336]
[1756953523469,0.62107436,111690.0,111680.0,1.49568054]
[1756953523966,0.62107436,111690.0,111680.0,1.49668054]
[1756953524665,0.62007436,111690.0,111680.0,1.49768054]
[1756953524865,0.7003574,111690.0,111680.0,1.49768054]
[1756953526165,0.7003574,111690.0,111680.0,1.44930852]
[1756953526364,0.68428541,111690.0,111680.0,1.44930852]
[1756953527164,0.68428541,111690.0,111680.0,1.44830852]
[1756953527365,0.68428541,111690.0,111680.0,1.44930852]
[1756953527768,0.68428541,111690.0,111680.0,1.44830852]
[1756953527967,0.68428541,111690.0,111680.0,1.44930852]
[1756953530571,0.62007436,111690.0,111680.0,1.44930852]
[1756953535178,0.66819699,111690.0,111680.0,1.44930852]
[1756953535580,0.66819699,111690.0,111680.0,1.08063798]
[1756953535774,0.66819699,111690.0,111680.0,1.44930852]
[1756953535978,0.62007436,111690.0,111680.0,1.44930852]
[1756953538079,0.64568582,111690.0,111680.0,1.44930852]
[1756953538284,0.43211582,111690.0,111680.0,1.44930852]
[1756953539282,0.43211582,111690.0,111680.0,1.19930852]
[1756953539482,0.43251582,111690.0,111680.0,1.19930852]
[1756953540574,0.02319436,111690.0,111680.0,1.44930852]
[1756953540773,0.44649146,111700.0,111690.0,0.02291]
[1756953540975,0.58025583,111700.0,111690.0,0.39158054]
[1756953542283,0.58125583,111700.0,111690.0,0.39158054]
[1756953544277,0.58125583,111700.0,111690.0,0.39258054]
[1756953544678,0.58025583,111700.0,111690.0,0.39258054]
[1756953544980,0.58035583,111700.0,111690.0,0.02491]
[1756953545184,0.58035583,111700.0,111690.0,0.87651]
[1756953545479,1.19902637,111700.0,111690.0,0.002]
[1756953545685,1.57095915,111700.0,111690.0,0.85348]
[1756953546088,1.57095915,111700.0,111690.0,0.0024]
[1756953546282,1.57095915,111700.0,111690.0,0.85344]
[1756953546678,1.57095915,111700.0,111690.0,0.85384]
[1756953547080,1.57095915,111700.0,111690.0,0.85344]
[1756953547387,1.57095915,111700.0,111690.0,0.85384]
[1756953547983,1.57095915,111700.0,111690.0,0.85284]
[1756953548189,1.57195915,111700.0,111690.0,0.0004]
[1756953548589,0.01353,111690.0,111680.0,0.85138]
[1756953548785,0.83572054,111690.0,111680.0,0.85208]
[1756953548984,0.86108979,111690.0,111680.0,0.85208]
[1756953549893,0.86108979,111690.0,111680.0,0.85308]
[1756953550092,0.86108979,111690.0,111680.0,0.85408]
[1756953550295,1.18530084,111690.0,111680.0,0.0028]
[1756953550497,0.79108979,111690.0,111680.0,0.85396]
[1756953550796,0.87108979,111690.0,111680.0,0.85396]
[1756953551089,0.79108979,111690.0,111680.0,0.85396]
[1756953551295,0.87108979,111690.0,111680.0,0.85396]
[1756953551491,1.16921436,111690.0,111680.0,0.0028]
[1756953551692,0.91921436,111690.0,111680.0,0.85392]
[1756953552594,1.14921436,111690.0,111680.0,0.0028]
[1756953552796,1.14921436,111690.0,111680.0,0.85384]
[1756953553002,2.50522598,111690.0,111680.0,0.002]
[1756953553303,2.45710141,111690.0,111680.0,0.0024]
[1756953554601,2.45710141,111690.0,111680.0,0.0014]
[1756953554900,2.45910141,111690.0,111680.0,0.0004]
[1756953555094,2.46010141,111690.0,111680.0,0.0004]
[1756953557901,1.35408979,111690.0,111680.0,0.02325]
[1756953558300,1.40219779,111690.0,111680.0,0.0004]
[1756953558701,1.35408979,111690.0,111680.0,0.0004]
[1756953559589,1.72276033,111690.0,111680.0,0.0004]
[1756953560505,0.01454,111680.0,111670.0,0.87355]
[1756953560701,0.90666168,111680.0,111670.0,0.87425]
[1756953560902,0.92962605,111680.0,111670.0,0.0008]
[1756953561097,0.03909,111670.0,111660.0,0.87351]
[1756953561297,0.87152491,111670.0,111660.0,0.02365]
[1756953561499,1.15962352,111670.0,111650.0,2.15706]
[1756953561804,0.79210915,111660.0,111650.0,2.74318]
[1756953561998,0.79210915,111660.0,111650.0,2.74228]
[1756953561999,0.81507352,111660.0,111650.0,2.74228]
[1756953562193,0.44640298,111660.0,111650.0,2.74228]
[1756953562397,0.44640298,111660.0,111650.0,2.74268]
[1756953562797,0.44640298,111660.0,111650.0,2.74468]
[1756953563304,0.75640298,111660.0,111650.0,2.74468]
[1756953564206,0.39830437,111660.0,111650.0,2.74468]
[1756953564409,0.74830437,111660.0,111650.0,2.74668]
[1756953564607,0.39830437,111660.0,111650.0,2.74468]
[1756953564909,0.39830437,111660.0,111650.0,2.74668]
[1756953565098,0.39830437,111660.0,111650.0,2.74468]
[1756953565294,0.76697491,111660.0,111650.0,1.89616]
[1756953565499,1.07697491,111660.0,111650.0,2.7466]
[1756953565700,1.12507352,111660.0,111650.0,2.74648]
[1756953566007,1.12507352,111660.0,111650.0,2.74608]
[1756953566008,1.17140147,111660.0,111650.0,2.74608]
[1756953566197,1.21942763,111660.0,111650.0,2.74608]
[1756953566402,1.21942763,111660.0,111650.0,2.74648]
[1756953566998,0.93942763,111660.0,111650.0,2.74648]
[1756953567200,0.94839569,111660.0,111650.0,2.74448]
[1756953567408,0.95839569,111660.0,111650.0,2.74648]
[1756953567701,0.91839569,111660.0,111650.0,2.74648]
[1756953567908,0.95839569,111660.0,111650.0,2.74448]
[1756953568108,1.22839569,111660.0,111650.0,2.74448]
[1756953568495,0.90942763,111660.0,111650.0,2.74448]
[1756953568700,1.25942763,111660.0,111650.0,2.74248]
[1756953568901,0.95042763,111660.0,111650.0,2.74248]
[1756953569312,0.94042763,111660.0,111650.0,2.74248]
[1756953569510,0.57175709,111660.0,111650.0,2.74248]
[1756953569713,0.57175709,111660.0,111650.0,3.11115054]
[1756953570099,0.47733053,111660.0,111650.0,2.74248]
[1756953570305,0.47733053,111660.0,111650.0,3.11115054]
[1756953570807,0.47733053,111660.0,111650.0,2.74248]
[1756953571311,0.47633053,111660.0,111650.0,2.74348]
[1756953571513,0.47633053,111660.0,111650.0,2.74448]
[1756953572220,0.42830437,111660.0,111650.0,2.74448]
[1756953572513,0.47630161,111660.0,111650.0,2.74448]
[1756953573213,0.42830437,111660.0,111650.0,2.74448]
[1756953573406,0.41376437,111660.0,111650.0,3.36628054]
[1756953574213,0.38376437,111660.0,111650.0,3.36628054]
[1756953574612,0.02296437,111660.0,111650.0,3.36528054]
[1756953575113,0.02296437,111660.0,111650.0,3.36628054]
[1756953575317,0.02296437,111660.0,111650.0,2.14416]
[1756953575318,0.39830437,111660.0,111650.0,2.14416]
[1756953575506,0.8149767,111660.0,111650.0,1.89416]
[1756953575712,1.13697491,111660.0,111650.0,2.7432]
[1756953575912,0.76697491,111660.0,111650.0,2.7462]
[1756953576206,0.79697491,111660.0,111650.0,2.7458]
[1756953576412,0.79697491,111660.0,111650.0,2.7462]
[1756953576709,0.79697491,111660.0,111650.0,2.7482]
[1756953576916,0.42830437,111660.0,111650.0,2.7482]
[1756953577207,0.49251542,111660.0,111650.0,2.7482]
[1756953577413,0.46179071,111660.0,111650.0,3.11687054]
[1756953577604,0.46179071,111660.0,111650.0,3.11087054]
[1756953577800,0.46179071,111660.0,111650.0,3.11187054]
[1756953578005,0.44633071,111660.0,111650.0,2.7432]
[1756953578205,0.39830437,111660.0,111650.0,2.7432]
[1756953579415,0.39830437,111660.0,111650.0,2.7422]
[1756953579600,0.74930437,111660.0,111650.0,2.7422]
[1756953579802,0.39930437,111660.0,111650.0,2.7432]
[1756953580006,0.70930437,111660.0,111650.0,2.7432]
[1756953580216,0.77351542,111660.0,111650.0,2.7432]
[1756953580413,0.79806542,111660.0,111650.0,0.87429]
[1756953580613,0.78189577,111660.0,111650.0,0.87393]
[1756953581015,1.15056631,111660.0,111650.0,0.02325]
[1756953581211,1.18056631,111660.0,111650.0,0.87349]
[1756953581513,0.87056631,111660.0,111650.0,0.87349]
[1756953582011,0.80189577,111660.0,111640.0,0.0001]
[1756953582218,0.8159821,111650.0,111640.0,0.24351]
[1756953582413,0.83894647,111650.0,111640.0,0.87761]
[1756953582609,1.17894647,111650.0,111640.0,0.87841]
[1756953582805,0.86894647,111650.0,111640.0,0.87761]
[1756953583118,0.86894647,111650.0,111640.0,0.87801]
[1756953583412,0.50027593,111650.0,111640.0,0.87901]
[1756953583618,0.8692639,111650.0,111640.0,0.87901]
[1756953583818,0.50027593,111650.0,111640.0,0.87853]
[1756953584116,0.50027593,111650.0,111640.0,0.87753]
[1756953584319,0.50027593,111650.0,111640.0,0.87853]
[1756953584818,0.50027593,111650.0,111640.0,0.87953]
[1756953585318,0.50027593,111650.0,111640.0,0.87853]
[1756953585519,0.50027593,111650.0,111640.0,0.87953]
[1756953586319,0.47027593,111650.0,111640.0,0.87953]
[1756953588121,1.1592639,111650.0,111640.0,0.02581]
[1756953588315,0.8392639,111650.0,111640.0,0.87885]
[1756953588514,0.8692639,111650.0,111640.0,0.02581]
[1756953588722,1.08121234,111650.0,111640.0,0.85512]
[1756953588915,1.08121234,111650.0,111640.0,0.0024]
[1756953589113,1.08121234,111650.0,111640.0,0.87845]
[1756953589313,1.33121234,111650.0,111640.0,0.0024]
[1756953589518,1.37931044,111650.0,111640.0,0.85452]
[1756953589811,1.33121234,111650.0,111640.0,0.85492]
[1756953590011,1.33121234,111650.0,111640.0,0.85452]
[1756953590217,1.33121234,111650.0,111640.0,0.85492]
[1756953591408,0.77643542,111650.0,111640.0,1.24731797]
[1756953591613,0.36107136,111650.0,111640.0,1.49731797]
[1756953591813,0.07107136,111650.0,111640.0,1.49731797]
[1756953592008,0.07107136,111650.0,111640.0,1.12833]
[1756953592210,0.07107136,111650.0,111640.0,1.49731797]
[1756953592722,0.02296437,111650.0,111640.0,1.49731797]
[1756953592922,0.02296437,111650.0,111640.0,1.12833]
[1756953593122,0.02296437,111650.0,111640.0,1.49731797]
[1756953595417,0.02296437,111650.0,111640.0,1.85811797]
[1756953596518,0.02296437,111650.0,111640.0,1.94765847]
[1756953596718,0.02296437,111650.0,111640.0,2.31664644]
[1756953596917,0.02296437,111650.0,111640.0,1.94765847]
[1756953597317,0.02296437,111650.0,111640.0,2.31664644]
[1756953598023,0.02296437,111650.0,111640.0,3.31982238]
[1756953598225,0.0001,111670.0,111660.0,0.02654]
[1756953598427,0.42344699,111680.0,111660.0,1.24736797]
[1756953598727,0.55344699,111680.0,111660.0,1.24746797]
[1756953599327,0.55344699,111680.0,111660.0,1.60826797]
[1756953599630,0.001,111670.0,111660.0,1.60826797]
[1756953599928,0.001,111670.0,111660.0,1.60816797]
[1756953600328,0.42344699,111680.0,111660.0,1.60816797]
[1756953600528,0.42344699,111680.0,111660.0,1.60826797]
[1756953600529,0.52344699,111680.0,111660.0,1.60826797]
[1756953600730,0.52444699,111680.0,111660.0,1.60826797]
[1756953601030,0.52644699,111680.0,111660.0,1.60826797]
[1756953601425,0.52444699,111680.0,111660.0,1.60826797]
[1756953601630,0.52444699,111680.0,111660.0,1.61126797]
[1756953602032,0.52344699,111680.0,111660.0,1.61126797]
[1756953602324,0.52344699,111680.0,111660.0,1.61426797]
[1756953603334,0.06303699,111690.0,111670.0,0.75319797]
[1756953603526,0.26856,111690.0,111680.0,1.21918797]
[1756953603726,0.26856,111690.0,111680.0,1.24259797]
[1756953605134,0.26856,111690.0,111680.0,0.87561]
[1756953605334,0.26856,111690.0,111680.0,1.24459797]
[1756953607230,0.26856,111690.0,111680.0,1.49459797]
[1756953607436,0.0401,111690.0,111680.0,1.50609797]
[1756953607930,0.0001,111690.0,111680.0,1.50609797]
[1756953608332,0.0001,111690.0,111680.0,1.57773118]
[1756953610138,0.02273386,111690.0,111680.0,1.57773118]
[1756953610538,0.02273386,111690.0,111680.0,0.72753118]
[1756953610739,0.06105386,111690.0,111680.0,1.56615118]
[1756953611436,0.0008,111720.0,111700.0,0.02654]
[1756953611636,0.39992,111720.0,111710.0,0.87349]
[1756953611833,0.76890797,111720.0,111710.0,0.87349]
[1756953612034,0.39992,111720.0,111710.0,0.02341]
[1756953612239,0.03832,111700.0,111690.0,0.40515148]
[1756953612439,0.03832,111700.0,111690.0,1.93421945]
[1756953612740,0.03832,111700.0,111690.0,3.04118336]
[1756953613043,0.01444,111710.0,111690.0,3.04118336]
[1756953613231,0.03832,111710.0,111700.0,0.39239797]
[1756953613435,0.03832,111710.0,111700.0,0.54239797]
[1756953614334,0.01444,111710.0,111700.0,1.39239797]
[1756953614536,0.03832,111710.0,111700.0,1.37239797]
[1756953615338,0.03832,111710.0,111700.0,1.37339797]
[1756953615839,0.03832,111710.0,111700.0,0.52339797]
[1756953616036,0.39912,111710.0,111700.0,1.00541]
[1756953616241,0.39912,111710.0,111700.0,1.37439797]
[1756953616840,0.39912,111710.0,111700.0,1.37435797]
[1756953617242,0.03832,111710.0,111700.0,1.37435797]
[1756953617744,0.03832,111710.0,111700.0,1.37235797]
[1756953617943,0.03832,111710.0,111700.0,1.37435797]
[1756953618131,0.03832,111710.0,111700.0,1.37535797]
[1756953618544,0.03832,111710.0,111700.0,1.37435797]
[1756953618841,0.44722699,111730.0,111720.0,0.02341]
[1756953619044,0.44722699,111730.0,111720.0,1.24231797]
[1756953620545,0.39912,111730.0,111720.0,1.24231797]
[1756953621340,0.46433105,111730.0,111720.0,1.24231797]
[1756953623550,0.4868444,111730.0,111720.0,1.24231797]
[1756953624744,0.4868444,111730.0,111720.0,1.61130594]
[1756953625055,0.4868444,111730.0,111720.0,1.24231797]
[1756953626151,0.4868444,111730.0,111720.0,1.2514827]
[1756953626547,0.4868444,111730.0,111720.0,1.24231797]
[1756953626753,0.4868444,111730.0,111720.0,0.39239797]
[1756953626952,0.4868444,111730.0,111720.0,1.24215797]
[1756953627251,0.42263335,111730.0,111720.0,1.24215797]
[1756953628352,0.75291639,111730.0,111720.0,0.87313]
[1756953628846,0.75291639,111730.0,111720.0,1.24211797]
[1756953629746,0.75291639,111730.0,111720.0,0.87313]
[1756953630152,0.75291639,111730.0,111720.0,1.24211797]
[1756953630346,0.75291639,111730.0,111720.0,1.19376538]
[1756953630546,0.73655326,111730.0,111720.0,1.19376538]
[1756953631754,0.73655326,111730.0,111720.0,0.36898797]
[1756953631957,0.73655326,111730.0,111720.0,1.21866797]
[1756953633455,0.67303335,111730.0,111720.0,1.21866797]
[1756953633754,0.7370167,111730.0,111720.0,1.21866797]
[1756953634255,0.7370167,111730.0,111720.0,1.23978503]
[1756953635757,0.4870167,111730.0,111720.0,1.23978503]
[1756953637558,0.42303335,111730.0,111720.0,1.23978503]
[1756953638158,0.48709201,111730.0,111720.0,1.23978503]
[1756953638359,0.42303335,111730.0,111720.0,1.23978503]
[1756953639460,0.50331639,111730.0,111720.0,1.23978503]
[1756953641057,0.14251639,111730.0,111720.0,1.23978503]
[1756953642162,0.50331639,111730.0,111720.0,1.23978503]
[1756953644055,0.11863639,111730.0,111720.0,2.34674894]
[1756953644463,0.11863639,111730.0,111720.0,2.70754894]